fUST/lending_fUST_20260629
["ID","MTS","AMOUNT","RATE_DAILY","PERIOD"]
[426613896,1782677448000,-1494.14173958,0.00036966,2]
[426613887,1782677448000,-989.39838555,0.00036312,2]
[426613892,1782677448000,-159.7,0.000369,120]
[426613897,1782677448000,-1057.4651203,0.0003697,2]
[426613894,1782677448000,-1097.28092246,0.00036966,2]
[426613883,1782677448000,-340.0,0.00036087,2]
[426613881,1782677448000,-200.0,0.00035991,2]
[426613885,1782677448000,-752.81096495,0.00036303,2]
[426613880,1782677448000,-159.7,0.000359,120]
[426613879,1782677448000,-349.70042411,0.00035882,2]
[426613895,1782677448000,-1187.27806266,0.00036966,2]
[426613944,1782677449000,-139121.64611384,0.0004,30]
[426613941,1782677449000,-2582549.38,0.0004,30]
[426613932,1782677449000,-497.14433705,0.00039999,31]
[426613928,1782677449000,-263.04885512,0.0003989,120]
[426613931,1782677449000,-388.03136089,0.00039999,31]
[426613926,1782677449000,-186.0,0.00039581,2]
[426613934,1782677449000,-157.50718479,0.0004,120]
[426613933,1782677449000,-2732099.00175867,0.0004,30]
[426613930,1782677449000,-668915.75078235,0.0003993,120]
[426613936,1782677449000,-205.0,0.0004,120]
[426613929,1782677449000,-1000.0,0.00039899,2]
[426613927,1782677449000,-319.79,0.000398,120]
[426613949,1782677449000,-197.0,0.0004,30]
[426613935,1782677449000,-500.0,0.0004,2]
[426613942,1782677449000,-1283.0,0.0004,5]
[426613946,1782677449000,-100000.0,0.0004,10]
[426613938,1782677449000,-1998.4245128,0.0004,120]
[426613948,1782677449000,-300.0,0.0004,120]
[426613955,1782677449000,-319.79,0.000403,120]
[426613957,1782677449000,-10446.6674664,0.00040444,30]
[426613956,1782677449000,-3536563.66088175,0.00040444,30]
[426613951,1782677449000,-428.0,0.0004,30]
[426613954,1782677449000,-43497.479,0.0004004,30]
[426613950,1782677449000,-155.0,0.0004,30]
[426613952,1782677449000,-189.0,0.0004,30]
[426613939,1782677449000,-5000.0,0.0004,120]
[426613945,1782677449000,-5000.0,0.0004,120]
[426613947,1782677449000,-1583.0,0.0004,60]
[426613937,1782677449000,-158.08035225,0.0004,120]
[426613943,1782677449000,-185.22291186,0.0004,2]
[426613940,1782677449000,-1599317.69,0.0004,30]
[426613953,1782677449000,-225.0,0.0004,30]
[426614022,1782678632000,-154.0,0.00028,2]
[426614024,1782678632000,-1938.12,0.00028999,7]
[426614018,1782678632000,-166.0,0.00028,2]
[426614026,1782678632000,-256.0,0.00029,2]
[426614030,1782678632000,-256.0,0.0003,2]
[426614032,1782678632000,-174.44206269,0.000301,11]
[426614028,1782678632000,-186.0,0.00029115,2]
[426614021,1782678632000,-256.0,0.00028,2]
[426614123,1782678638000,-328.79046723,0.000301,11]
[426614124,1782678638000,-256.0,0.00031,2]
[426614125,1782678638000,-256.0,0.00032,2]
[426614126,1782678638000,-192.2736187,0.00032866,2]
[426614127,1782678638000,-272.0,0.00033,2]
[426614129,1782678638000,-184.98897728,0.00034281,2]
[426614130,1782678638000,-171.16544045,0.00034281,2]
[426614133,1782678638000,-342.33088091,0.00035278,2]
[426614132,1782678638000,-369.97795456,0.00035278,2]
[426614128,1782678638000,-181.13843799,0.00034281,2]
[426614131,1782678638000,-362.27687599,0.00035278,2]
[426614135,1782678639000,-160.39757875,0.00035848,2]
[426614134,1782678639000,-218.70911682,0.00035848,2]
[426614160,1782678649000,-1688.0968324,0.00037121,2]
[426614158,1782678649000,-924.94488641,0.00036829,2]
[426614156,1782678649000,-684.66176182,0.00036386,2]
[426614159,1782678649000,-3057.84281098,0.00037121,2]
[426614155,1782678649000,-739.95590912,0.00036386,2]
[426614154,1782678649000,-724.55375197,0.00036386,2]
[426614157,1782678649000,-905.69218997,0.00036829,2]
[426614150,1782678649000,-34.39862762,0.00035848,2]
[426614151,1782678649000,-543.41531398,0.00035943,2]
[426614153,1782678649000,-513.49632136,0.00035943,2]
[426614152,1782678649000,-554.96693184,0.00035943,2]
[426614161,1782678746000,158.10327879,0.00029536,110]
[426614167,1782679039000,-600.97,0.00013563,2]
[426614168,1782679041000,-500.0,0.00013563,2]
[426614169,1782679042000,-1093.67666698,0.00013563,2]
[426614172,1782679520000,-1117.82,0.00012898,2]
[426614182,1782679803000,541.41992983,0.0001251,2]
[426614183,1782679811000,3882.18,0.0001251,2]
[426614361,1782679839000,-1550.5,0.00029537,7]
[426614359,1782679839000,-179.0,0.00029,2]
[426614349,1782679839000,-260.05,0.000137,2]
[426614367,1782679839000,-151.0,0.00030137,6]
[426614355,1782679839000,-839.884,0.00028854,2]
[426614354,1782679839000,-179.0,0.00028,2]
[426614351,1782679839000,-158.0,0.00028,2]
[426614357,1782679839000,-158.0,0.00029,2]
[426614363,1782679839000,-172.0,0.0003,2]
[426614365,1782679839000,-179.0,0.0003,2]
[426614387,1782679839000,-535.49440792,0.00035943,2]
[426614380,1782679839000,-178.49813597,0.00034281,2]
[426614391,1782679839000,-4646.68168851,0.00036286,2]
[426614369,1782679839000,-179.0,0.00031,2]
[426614372,1782679839000,-179.0,0.00032,2]
[426614381,1782679839000,-214.50604499,0.00035278,2]
[426614389,1782679839000,-286.56006248,0.00035943,2]
[426614385,1782679839000,-429.01208999,0.00035943,2]
[426614383,1782679839000,-356.99627195,0.00035278,2]
[426614375,1782679839000,-6252.9791974,0.00032141,120]
[426614374,1782679839000,-323.0,0.0003214,3]
[426614378,1782679839000,-183.0,0.00033,2]
[426614958,1782680020000,32042.0,0.00030137,120]
[426614960,1782680176000,6807551.64666039,0.00029537,30]
[426614963,1782680440000,210.95118123,0.0003,120]
[426614964,1782680478000,191.57949052,0.0003,120]
[426614965,1782680616000,627.286,0.00030136,30]
[426614968,1782680760000,168.76094498,0.0003,120]
[426615048,1782681031000,-2107.03106692,0.00026683,2]
[426615050,1782681031000,-338.712,0.00026683,2]
[426615156,1782681038000,-679.79329444,0.00026683,2]
[426615274,1782681039000,462.31,0.00030137,30]
[426615743,1782681080000,168.76094498,0.0003,120]
[426615758,1782681398000,561.54980946,0.0003,120]
[426615762,1782681718000,449.23984757,0.0003,120]
[426615768,1782682037000,359.39187805,0.0003,120]
[426615850,1782682232000,-20.85530089,0.00028,2]
[426615848,1782682232000,-173.71218037,0.000275,3]
[426615846,1782682232000,-160.0,0.00025562,17]
[426616049,1782682238000,-500.0,0.00029533,2]
[426616042,1782682238000,-332.3,0.000293,3]
[426616051,1782682238000,-600.97,0.00029535,2]
[426616031,1782682238000,-589.14469911,0.00028,2]
[426616038,1782682238000,-610.0,0.00029,2]
[426616036,1782682238000,-519.3314,0.000282,3]
[426616033,1782682238000,-156.0,0.00028,2]
[426616045,1782682238000,-1093.67666698,0.00029461,2]
[426616040,1782682238000,-166.0,0.00029,2]
[426616044,1782682238000,-508.61143972,0.00029461,2]
[426616053,1782682238000,-500.0,0.00029535,2]
[426616064,1782682238000,-1000.0,0.0002956,2]
[426616057,1782682238000,-1000.0,0.0002956,2]
[426616060,1782682238000,-1000.0,0.0002956,2]
[426616055,1782682238000,-1240.4,0.00029537,7]
[426616062,1782682238000,-1000.0,0.0002956,2]
[426616066,1782682238000,-1000.0,0.0002956,2]
[426616068,1782682238000,-38778.80378474,0.00029561,30]
[426616075,1782682238000,-1934.99712875,0.00029561,30]
[426616070,1782682238000,-614646.02805635,0.00029561,30]
[426616073,1782682238000,-2318.91020796,0.00029561,30]
[426616048,1782682238000,-151.0,0.000295,19]
[426616305,1782682240000,-4408.61400221,0.00029561,30]
[426616303,1782682240000,-282.3473986,0.00029561,30]
[426617093,1782682246000,-1186.0739943,0.00029561,30]
[426617084,1782682246000,-48513.39099568,0.00029561,30]
[426617136,1782682356000,287.51350244,0.0003,120]
[426617142,1782682675000,230.01080196,0.0003,120]
[426617153,1782682994000,184.00864156,0.0003,120]
[426617176,1782683315000,184.00864157,0.0003,120]
[426618266,1782683443000,-422.7777,0.000264,5]
[426618268,1782683444000,-174.03211629,0.00026421,2]
[426618648,1782683447000,-1933.08108008,0.0002853,2]
[426618620,1782683447000,-341.77599617,0.00026421,2]
[426618622,1782683447000,-916.99219994,0.00026421,2]
[426618624,1782683447000,-151.0,0.00028,2]
[426618627,1782683447000,-1594.06495585,0.0002843,2]
[426618626,1782683447000,-549.0,0.00028,2]
[426618644,1782683447000,-1676.64465557,0.0002843,2]
[426618649,1782683447000,-1933.08108008,0.0002853,2]
[426618646,1782683447000,-1933.08108008,0.0002853,2]
[426618663,1782683447000,-1933.08108008,0.0002853,2]
[426618659,1782683447000,-1933.08108008,0.0002853,2]
[426618667,1782683447000,-1933.08108008,0.0002853,2]
[426618672,1782683447000,-960.22022331,0.0002853,2]
[426618671,1782683447000,-1933.08108008,0.0002853,2]
[426618669,1782683447000,-1933.08108008,0.0002853,2]
[426618651,1782683447000,-1933.08108008,0.0002853,2]
[426618653,1782683447000,-1933.08108008,0.0002853,2]
[426618655,1782683447000,-1933.08108008,0.0002853,2]
[426618657,1782683447000,-1933.08108008,0.0002853,2]
[426618661,1782683447000,-1933.08108008,0.0002853,2]
[426618665,1782683447000,-1933.08108008,0.0002853,2]
[426620111,1782683566000,8126.0136288,0.00027998,120]
[426620112,1782683634000,184.00864156,0.0003,120]
[426620118,1782683840000,9892.9463441,0.00015,60]
[426620123,1782683952000,184.00864157,0.0003,120]
[426620126,1782684271000,184.00864156,0.0003,120]
[426620129,1782684408000,845.62123989,0.00022,30]
[426620187,1782684632000,-244.2324901,0.000262,2]
[426620188,1782684632000,-300.0,0.00026359,2]
[426620189,1782684632000,-148.29533224,0.0002636,2]
[426620186,1782684632000,-125.71397592,0.0002465,2]
[426620184,1782684632000,-572.59276827,0.0002465,2]
[426620185,1782684632000,-319.66208757,0.0002465,2]
[426620183,1782684632000,-180.04792055,0.00023643,2]
[426620174,1782684632000,-1251.31959154,0.00023643,2]
[426620251,1782684638000,-5833.99753322,0.0002636,2]
[426620277,1782684638000,-1387.97436804,0.0002636,2]
[426620279,1782684638000,-697.4848032,0.000264,5]
[426620350,1782684639000,-183.92324834,0.00027693,5]
[426620322,1782684639000,-1691.26799285,0.00027684,2]
[426620325,1782684639000,-1818.11309232,0.00027684,2]
[426620327,1782684639000,-1818.11309232,0.00027684,2]
[426620323,1782684639000,-1691.26799285,0.00027684,2]
[426620335,1782684639000,-1818.11309232,0.00027684,2]
[426620333,1782684639000,-1818.11309232,0.00027684,2]
[426620329,1782684639000,-1818.11309232,0.00027684,2]
[426620342,1782684639000,-2296.1008892,0.00027684,2]
[426620338,1782684639000,-1818.11309232,0.00027684,2]
[426620331,1782684639000,-1818.11309232,0.00027684,2]
[426620340,1782684639000,-1818.11309232,0.00027684,2]
[426620344,1782684639000,-2296.1008892,0.00027684,2]
[426620346,1782684639000,-35108.6112095,0.00027688,2]
[426620353,1782684639000,-160.0,0.00027997,2]
[426620352,1782684639000,-507.48683975,0.00027873,2]
[426620361,1782684639000,-160.58474193,0.00028,2]
[426620348,1782684639000,-23352.6471636,0.00027688,2]
[426620337,1782684639000,-1818.11309232,0.00027684,2]
[426620316,1782684639000,-1691.26799285,0.00027684,2]
[426620296,1782684639000,-1691.26799285,0.00027684,2]
[426620320,1782684639000,-1691.26799285,0.00027684,2]
[426620284,1782684639000,-199.1538993,0.00026918,2]
[426620286,1782684639000,-311.90813287,0.00027113,5]
[426620282,1782684639000,-715.83298662,0.000264,5]
[426620292,1782684639000,-1691.26799285,0.00027684,2]
[426620288,1782684639000,-4151.44303212,0.00027584,2]
[426620290,1782684639000,-5274.08921093,0.00027684,2]
[426620302,1782684639000,-1691.26799285,0.00027684,2]
[426620298,1782684639000,-1691.26799285,0.00027684,2]
[426620359,1782684639000,-522.0,0.00028,2]
[426620295,1782684639000,-1691.26799285,0.00027684,2]
[426620300,1782684639000,-1691.26799285,0.00027684,2]
[426620303,1782684639000,-1691.26799285,0.00027684,2]
[426620304,1782684639000,-1691.26799285,0.00027684,2]
[426620306,1782684639000,-530.92821699,0.00027684,2]
[426620305,1782684639000,-524.20244029,0.00027684,2]
[426620307,1782684639000,-500.0,0.00027684,2]
[426620314,1782684639000,-388.42601376,0.00027684,2]
[426620309,1782684639000,-1691.26799285,0.00027684,2]
[426620311,1782684639000,-500.0,0.00027684,2]
[426620318,1782684639000,-1691.26799285,0.00027684,2]
[426620357,1782684639000,-151.0,0.00028,2]
[426620312,1782684639000,-1691.26799285,0.00027684,2]
[426620368,1782684639000,-518.20445619,0.0002853,2]
[426620410,1782684639000,-589.16,0.00029515,2]
[426620414,1782684639000,-589.16,0.00029515,2]
[426620408,1782684639000,-589.16,0.00029515,2]
[426620412,1782684639000,-589.16,0.00029515,2]
[426620416,1782684639000,-589.16,0.00029515,2]
[426620421,1782684639000,-589.16,0.00029515,2]
[426620420,1782684639000,-589.16,0.00029515,2]
[426620425,1782684639000,-589.16,0.00029515,2]
[426620427,1782684639000,-589.16,0.00029515,2]
[426620429,1782684639000,-589.16,0.00029515,2]
[426620423,1782684639000,-589.16,0.00029515,2]
[426620431,1782684639000,-589.16,0.00029515,2]
[426620433,1782684639000,-589.16,0.00029515,2]
[426620436,1782684639000,-589.26462061,0.00029515,2]
[426620440,1782684639000,-1663027.75066895,0.00029516,30]
[426620435,1782684639000,-589.16,0.00029515,2]
[426620438,1782684639000,-505.03344454,0.00029515,2]
[426620443,1782684639000,-27884.11871836,0.00029516,30]
[426620445,1782684639000,-7283.04388557,0.00029516,30]
[426620406,1782684639000,-589.16,0.00029515,2]
[426620403,1782684639000,-589.16,0.00029515,2]
[426620418,1782684639000,-589.16,0.00029515,2]
[426620404,1782684639000,-589.16,0.00029515,2]
[426620365,1782684639000,-440.79658104,0.00028416,2]
[426620366,1782684639000,-300.0,0.00028516,2]
[426620363,1782684639000,-507.48683974,0.00028259,2]
[426620401,1782684639000,-589.16,0.00029515,2]
[426620372,1782684639000,-166.0,0.00029,2]
[426620376,1782684639000,-507.48683974,0.0002903,2]
[426620374,1782684639000,-522.0,0.00029,2]
[426620378,1782684639000,-589.16,0.00029118,2]
[426620380,1782684639000,-500.0,0.00029118,2]
[426620391,1782684639000,-151.0,0.000295,13]
[426620370,1782684639000,-507.48683974,0.00028645,2]
[426620393,1782684639000,-2481.0863972,0.00029505,2]
[426620382,1782684639000,-229.99,0.00029119,3]
[426620395,1782684639000,-589.16,0.00029515,2]
[426620397,1782684639000,-589.16,0.00029515,2]
[426620399,1782684639000,-589.16,0.00029515,2]
[426620355,1782684639000,-160.0,0.00027997,2]
[426620385,1782684639000,-320.22554533,0.00029402,2]
[426620387,1782684639000,-507.48683974,0.00029416,2]
[426620383,1782684639000,-151.0,0.000294,15]
[426620389,1782684639000,-4151.44303206,0.00029458,2]
[426620588,1782684640000,-1700.44,0.00029516,30]
[426620988,1782684644000,-906.543109,0.000294,2]
[426620990,1782684644000,-4593.676891,0.00029516,30]
[426621065,1782684647000,-29851.19504938,0.00029516,30]
[426621063,1782684647000,-3266.59158465,0.00029516,30]
[426621064,1782684647000,-90688.30840302,0.00029516,30]
[426621062,1782684647000,-433.45861977,0.00029106,2]
[426621075,1782685287000,3880.0,0.00030137,30]
[426621156,1782685834000,-433.45811007,0.00020869,2]
[426621143,1782685834000,-327.73364448,0.00020869,2]
[426621138,1782685834000,-492.62057381,0.00020869,2]
[426621141,1782685834000,-359.87084603,0.00020869,2]
[426621274,1782685841000,-1272.23738423,0.00020869,2]
[426621275,1782685841000,-3066.53408301,0.0002108,2]
[426621276,1782685841000,-2245.31608091,0.00021293,2]
[426621280,1782685841000,-576.52800239,0.00026469,2]
[426621279,1782685841000,-160.0,0.00025589,17]
[426621277,1782685841000,-219.804565,0.00023543,2]
[426621278,1782685841000,-201.41734349,0.00024116,7]
[426621315,1782685847000,-568.11173514,0.00026469,2]
[426621317,1782685948000,-260.25033,0.00021286,7]
[426621319,1782685965000,-390.37549501,0.00022539,7]
[426621320,1782686019000,258.0,0.00024,30]
[426621321,1782686112000,306.86216165,0.0003,120]
[426621322,1782686250000,2003.0,0.00030137,30]
[426621328,1782686433000,245.48972932,0.0003,120]
[426621331,1782686469000,216.6891424,0.00019178,30]
[426621330,1782686469000,500.0,0.00019178,30]
[426621340,1782686753000,196.39178345,0.0003,120]
[426621367,1782687033000,-5000.0,0.00018493,2]
[426621368,1782687033000,-2368.64637739,0.0001868,2]
[426621366,1782687033000,-1272.23738423,0.00018308,2]
[426621438,1782687038000,-32.13551999,0.00024682,2]
[426621434,1782687038000,-201.41734349,0.00021286,7]
[426621432,1782687038000,-156.150198,0.00021286,7]
[426621430,1782687038000,-1144.92487578,0.0001868,2]
[426621436,1782687038000,-234.22529701,0.00022539,7]
[426621512,1782687046000,-231.322208,0.00025701,2]
[426621513,1782687046000,-786.77133674,0.00026123,2]
[426621511,1782687046000,-177.705034,0.00025683,2]
[426621509,1782687046000,-217.86448001,0.00024682,2]
[426621510,1782687046000,-160.0,0.00025589,17]
[426621515,1782687050000,-8282.46363296,0.00026123,2]
[426621517,1782687050000,-2870.27596974,0.00026355,2]
[426621516,1782687050000,-500.0,0.00026355,2]
[426621518,1782687073000,196.39178346,0.0003,120]
[426621520,1782687174000,64217.64239325,0.0002882,120]
[426621526,1782687394000,196.39178345,0.0003,120]
[426621535,1782687712000,196.39178346,0.0003,120]
[426621543,1782688029000,196.39178345,0.0003,120]
[426621585,1782688232000,-866.09115285,0.0002404,2]
[426621583,1782688232000,-1186.68686881,0.0002404,2]
[426621581,1782688232000,-667.51136371,0.0002404,2]
[426621579,1782688232000,-370.8396465,0.0002404,2]
[426621577,1782688232000,-1171.08570063,0.00023326,2]
[426622150,1782688242000,-986.25288144,0.0002404,2]
[426622164,1782688242000,-530.67433707,0.00025305,2]
[426622160,1782688242000,-165.83573034,0.00025305,2]
[426622162,1782688242000,-298.5043146,0.00025305,2]
[426622166,1782688242000,-828.34947302,0.00025338,2]
[426622156,1782688242000,-1217.9041057,0.0002404,2]
[426622154,1782688242000,-685.07105946,0.0002404,2]
[426622158,1782688242000,-1901.07219,0.0002404,2]
[426622177,1782688242000,-231.322208,0.00026125,2]
[426622175,1782688242000,-1016.72,0.00026123,2]
[426622179,1782688242000,-128.67462768,0.00026637,2]
[426622171,1782688242000,-160.0,0.00025589,17]
[426622173,1782688242000,-3630.1826661,0.00026118,2]
[426622152,1782688242000,-380.59503303,0.0002404,2]
[426623711,1782689432000,-151.91244951,0.0002084,2]
[426623721,1782689432000,-160.566907,0.00026672,2]
[426623723,1782689432000,-7687.18762373,0.00026775,2]
[426623719,1782689432000,-219.804565,0.00024701,2]
[426623727,1782689432000,-177.705034,0.00026891,2]
[426623715,1782689432000,-312.92338223,0.00021696,2]
[426623713,1782689432000,-5000.0,0.00021051,2]
[426623717,1782689432000,-488.45384196,0.00021696,2]
[426623725,1782689432000,-1382.04734597,0.00026775,2]
[426623734,1782689432000,-500.0,0.00027283,2]
[426623729,1782689432000,-499.999999,0.00027,2]
[426623743,1782689432000,-500.0,0.00027283,2]
[426623740,1782689432000,-345.73792484,0.00027283,2]
[426623738,1782689432000,-300.0,0.00027283,2]
[426623744,1782689432000,-0.73792484,0.00027283,2]
[426623736,1782689432000,-500.0,0.00027283,2]
[426623732,1782689432000,-500.0,0.00027283,2]
[426623731,1782689432000,-224.28,0.00027277,2]
[426623742,1782689432000,-154.26207516,0.00027283,2]
[426623838,1782689438000,-867.43774828,0.00027695,2]
[426623839,1782689438000,-4368.08904762,0.00027931,2]
[426623841,1782689438000,-830.0,0.00028,2]
[426623840,1782689438000,-151.0,0.00028,2]
[426623834,1782689438000,-5281.0723028,0.00027285,2]
[426623835,1782689438000,-151.0,0.00027285,2]
[426623837,1782689438000,-106.92225172,0.00027695,2]
[426623836,1782689438000,-500.0,0.00027694,2]
[426623830,1782689438000,-500.0,0.00027283,2]
[426623831,1782689438000,-256.33,0.00027283,2]
[426623832,1782689438000,-151.0,0.00027283,2]
[426623829,1782689438000,-33.42382418,0.00027283,2]
[426623842,1782689438000,-242.564779,0.00028,2]
[426623828,1782689438000,-466.57617582,0.00027283,2]
[426623827,1782689438000,-500.0,0.00027283,2]
[426623825,1782689438000,-499.26207516,0.00027283,2]
[426623826,1782689438000,-500.0,0.00027283,2]
[426623833,1782689438000,-151.0,0.00027283,2]
[426623844,1782689438000,-160.0,0.00028001,2]
[426623847,1782689438000,-1046.3716877,0.00028284,7]
[426623856,1782689438000,-1775.01536546,0.00029414,2]
[426623863,1782689438000,-974.36,0.00029513,2]
[426623858,1782689438000,-974.36,0.00029506,2]
[426623861,1782689438000,-974.36,0.00029513,2]
[426623862,1782689438000,-974.36,0.00029513,2]
[426623860,1782689438000,-974.36,0.00029513,2]
[426623859,1782689438000,-454.48030764,0.00029512,2]
[426623843,1782689438000,-168.0,0.00028,14]
[426623857,1782689438000,-411.41014236,0.00029414,2]
[426623855,1782689438000,-4932.650246,0.000291,2]
[426623854,1782689438000,-167.21176297,0.00029076,2]
[426623851,1782689438000,-1448.88699929,0.00029,2]
[426623852,1782689438000,-160.63556094,0.00029,2]
[426623848,1782689438000,-1000.0,0.00028611,5]
[426623849,1782689438000,-974.36,0.00028919,2]
[426623845,1782689438000,-168.4713403,0.00028031,2]
[426623850,1782689438000,-635.16392297,0.0002892,2]
[426623846,1782689438000,-234.7461539,0.000282,3]
[426623853,1782689438000,-830.0,0.00029,2]
[426623867,1782689439000,-731.9440668,0.00029513,2]
[426623868,1782689439000,-974.36,0.00029513,2]
[426623870,1782689439000,-974.36,0.00029513,2]
[426623865,1782689439000,-974.36,0.00029513,2]
[426623864,1782689439000,-974.36,0.00029513,2]
[426623866,1782689439000,-242.4159332,0.00029513,2]
[426623872,1782689439000,-591.84865126,0.00029513,2]
[426623878,1782689439000,-60.98134874,0.00029513,2]
[426623871,1782689439000,-382.51134874,0.00029513,2]
[426623876,1782689439000,-974.36,0.00029513,2]
[426623877,1782689439000,-974.36,0.00029513,2]
[426623869,1782689439000,-974.36,0.00029513,2]
[426623873,1782689439000,-974.36,0.00029513,2]
[426623874,1782689439000,-222.6251331,0.00029513,2]
[426623875,1782689439000,-751.7348669,0.00029513,2]
[426623899,1782689440000,-1495.40857892,0.00029514,30]
[426623898,1782689440000,-2189.73412924,0.00029514,30]
[426623895,1782689440000,-974.39470479,0.00029513,2]
[426623896,1782689440000,-1875.06536549,0.00029514,30]
[426623893,1782689440000,-974.36,0.00029513,2]
[426623892,1782689440000,-974.36,0.00029513,2]
[426623891,1782689440000,-974.36,0.00029513,2]
[426623894,1782689440000,-974.36,0.00029513,2]
[426623890,1782689440000,-913.37865126,0.00029513,2]
[426623897,1782689440000,-1032.17070523,0.00029514,30]
[426623931,1782689443000,-813.5,0.00029514,30]
[426623932,1782689443000,-468.942,0.00029514,30]
[426623939,1782689447000,-2899.18069517,0.00029514,30]
[426623941,1782689447000,-41426.17922172,0.00029514,30]
[426623940,1782689447000,-25108.10746297,0.00029514,30]
[426624060,1782690632000,-1317.80059783,0.00029512,2]
[426624056,1782690632000,-1317.80059783,0.00029512,2]
[426624054,1782690632000,-1317.80059783,0.00029512,2]
[426624048,1782690632000,-1317.80059783,0.00029512,2]
[426624050,1782690632000,-1317.80059783,0.00029512,2]
[426624044,1782690632000,-200.0,0.00029512,2]
[426624038,1782690632000,-2335.02304822,0.00029413,2]
[426624052,1782690632000,-1317.80059783,0.00029512,2]
[426624035,1782690632000,-3822.07791665,0.00029413,2]
[426624045,1782690632000,-1317.80059783,0.00029512,2]
[426624033,1782690632000,-418.96495926,0.00029413,2]
[426624025,1782690632000,-760.0,0.00028,2]
[426624023,1782690632000,-747.0,0.00028,2]
[426624027,1782690632000,-1000.0,0.00028597,5]
[426624031,1782690632000,-300.0,0.00029412,2]
[426624029,1782690632000,-747.0,0.00029,2]
[426624058,1782690632000,-1317.80059783,0.00029512,2]
[426624041,1782690632000,-417.37,0.00029512,2]
[426624063,1782690632000,-1317.80059783,0.00029512,2]
[426624071,1782690632000,-1317.80059783,0.00029512,2]
[426624062,1782690632000,-1317.80059783,0.00029512,2]
[426624098,1782690632000,-999.21044642,0.00029513,30]
[426624101,1782690632000,-10579.1697719,0.00029513,30]
[426624094,1782690632000,-286.70490791,0.00029512,2]
[426624096,1782690632000,-1423.22464567,0.00029512,2]
[426624092,1782690632000,-1136.51973776,0.00029512,2]
[426624088,1782690632000,-1423.22464567,0.00029512,2]
[426624090,1782690632000,-1423.22464567,0.00029512,2]
[426624103,1782690632000,-2500.09975333,0.00029513,30]
[426624078,1782690632000,-1423.22464567,0.00029512,2]
[426624086,1782690632000,-1423.22464567,0.00029512,2]
[426624082,1782690632000,-1423.22464567,0.00029512,2]
[426624077,1782690632000,-1317.80059783,0.00029512,2]
[426624075,1782690632000,-1317.80059783,0.00029512,2]
[426624080,1782690632000,-1423.22464567,0.00029512,2]
[426624073,1782690632000,-1317.80059783,0.00029512,2]
[426624067,1782690632000,-1317.80059783,0.00029512,2]
[426624065,1782690632000,-1317.80059783,0.00029512,2]
[426624069,1782690632000,-1317.80059783,0.00029512,2]
[426624084,1782690632000,-1423.22464567,0.00029512,2]
[426624247,1782690638000,-140636.73115889,0.00029513,30]
[426624494,1782690640000,-80986.82221648,0.00029513,30]
[426625205,1782690647000,-3716.64070783,0.00029513,30]
[426625207,1782690647000,-897.39785321,0.00029513,30]
[426625260,1782690647000,-639.769,0.00029513,30]
[426625214,1782690647000,-2616.55796285,0.00029513,30]
[426625209,1782690647000,-31941.50000004,0.00029513,30]
[426625589,1782690650000,-43780.88381347,0.00029513,30]
[426625772,1782691410000,200.0,0.00028579,120]
[426625773,1782691456000,-359.99683569,0.00019406,2]
[426625931,1782691833000,-207.0,0.0002,10]
[426625933,1782691833000,-226.45811007,0.000215,2]
[426626675,1782691844000,-1389.88285389,0.000215,2]
[426626677,1782691844000,-300.0,0.00024,15]
[426626679,1782691844000,-162.37412746,0.00028,7]
[426626681,1782691844000,-147.74301865,0.00028,2]
[426627019,1782691850000,-672.0,0.00029,2]
[426627021,1782691850000,-446.0,0.00029071,2]
[426627022,1782691850000,-89.09476577,0.000294,2]
[426627018,1782691850000,-1000.0,0.000289,2]
[426627016,1782691850000,-524.25698135,0.00028,2]
[426627017,1782691850000,-576.21868928,0.00028506,5]
[426627020,1782691850000,-187.0,0.00029071,2]